Cogmind - Beta 13 @@@ ROGUE MODE // 2024.04.22 @ 20:11:43 Player: adenochrome Result: Destroyed by B-75 Beast with Heavy Plasma Cannon Performance ------------- Evolutions (4) 2000 Regions Visited (10) 2000 Robots Destroyed (86) 430 Value Destroyed (3400) 3400 Prototype IDs (24) 480 Alien Tech Used (0) 0 Bonus (380) 380 TOTAL SCORE: 8690 Bonus ------- Follower Combat Kills 80 Aligned with FarCom 300 Cogmind --------- Core Integrity 0/850 Matter 295/300 Energy 100/100 System Corruption 6% Temperature Cool (12) Movement Core (350) Ox6 Location -6/Extension Parts ------- > --- POWER (2) -------- (None) > --- PROPULSION (4) --- (None) > --- UTILITY (5) ------ Large Storage Unit Advanced Targeting Computer Advanced Targeting Computer Advanced Targeting Computer > --- WEAPON (4) ------- (None) > --- INVENTORY (15) --- Fission Core Large Storage Unit Kinecellerator Layered Light Armor Plating Layered Light Armor Plating Skeleton Box EMP Trap EMP Trap EMP Trap Peak State ------------ > --- POWER ------------ Fission Core Light Antimatter Reactor > --- PROPULSION ------- Carbon-fiber Leg Carbon-fiber Leg Carbon-fiber Leg Flexi-carbon Leg > --- UTILITY ---------- Large Storage Unit Advanced Targeting Computer Advanced Targeting Computer Advanced Targeting Computer Kinecellerator > --- WEAPON ----------- Autogun Assault Cannon Magnetic Acceleration Cannon > --- INVENTORY -------- Nuclear Core Large Storage Unit Layered Light Armor Plating Layered Light Armor Plating Skeleton Box Field Laser Missile Launcher EMP Trap EMP Trap EMP Trap [Rating: 52] Favorites ----------- Power Ion Engine Engine Ion Engine Power Core Fission Core Reactor Light Antimatter Reactor Propulsion Aluminum Leg Leg Aluminum Leg Utility Advanced Targeting Computer Device Structural Scanner Storage Large Storage Unit Processor Advanced Targeting Computer Protection Layered Light Armor Plating Weapon Autogun Energy Gun Particle Gun Energy Cannon Particle Cannon Ballistic Gun Autogun Ballistic Cannon Improved Light Cannon Launcher Missile Launcher Build | -11 -10 -10 -9 -9 -9 -8 -8 -7 -6 -6 ------- Run | Yrd Mat Min Mat Min Exi Min Mat Fac Fac Ext Slots Evolved 8 | . . . 2 . . . 2 2 2 . Power 1 | . . . . . . . . 1 . . Propulsion 2 | . . . 1 . . . . 1 . . Utility 3 | . . . 1 . . . 1 . 1 . Weapon 2 | . . . . . . . 1 . 1 . Parts Attached 98 | 6 4 4 11 6 1 2 11 12 21 20 Power 17 | 1 . 2 1 1 . . 1 1 5 5 Engine 10 | 1 . 2 1 1 . . 1 1 3 . Core 6 | . . . . . . . . . 1 5 Reactor 1 | . . . . . . . . . 1 . Propulsion 25 | 2 2 1 1 3 . . 3 1 6 6 Treads . | . . . . . . . . . . . Leg 25 | 2 2 1 1 3 . . 3 1 6 6 Wheel . | . . . . . . . . . . . Hover . | . . . . . . . . . . . Flight . | . . . . . . . . . . . Utility 22 | 1 2 1 4 1 1 . 3 3 3 3 Device 9 | . . 1 1 1 1 . 1 1 . 3 Storage 3 | 1 1 . 1 . . . . . . . Processor 7 | . . . 1 . . . 2 1 3 . Hackware . | . . . . . . . . . . . Protection 3 | . 1 . 1 . . . . 1 . . Artifact . | . . . . . . . . . . . Weapon 34 | 2 . . 5 1 . 2 4 7 7 6 Energy Gun 7 | . . . 2 . . . 1 1 . 3 Energy Cannon 1 | . . . . . . . 1 . . . Ballistic Gun 13 | 2 . . 1 1 . . 2 3 4 . Ballistic Cannon 8 | . . . 2 . . 1 . 1 2 2 Launcher 5 | . . . . . . 1 . 2 1 1 Special Weapon . | . . . . . . . . . . . Impact Weapon . | . . . . . . . . . . . Slashing Weapon . | . . . . . . . . . . . Piercing Weapon . | . . . . . . . . . . . Special Melee Weapon . | . . . . . . . . . . . Unidentified Prototypes 1 | . . 1 . . . . . . . . Parts Lost 55 | . . 2 1 6 . . 8 2 12 24 Power 10 | . . 1 . 1 . . 1 . 2 5 Propulsion 20 | . . . . 3 . . 4 . 3 10 Utility 6 | . . 1 . 1 . . . 2 2 . Weapon 19 | . . . 1 1 . . 3 . 5 9 Highest Loss Streak 8 | . . 2 1 6 . . 4 2 6 8 To Critical Strikes . | . . . . . . . . . . . Average Slot Usage (%) 85 | . 99 90 94 87 100 91 86 83 84 74 Engine 6 | . 14 13 11 10 11 11 8 6 4 . Core 2 | . . . . . . . . . 2 8 Leg 25 | . 28 28 33 31 33 33 26 23 24 20 Device 1 | . . . . 1 11 3 . 1 . . Storage 8 | . 14 14 11 11 11 11 9 7 6 6 Processor 14 | . . . 8 11 11 11 16 16 14 21 Protection 2 | . 13 5 8 . . . . 4 2 . Energy Gun 1 | . . . 10 . . . 1 2 . 1 Ballistic Gun 11 | . 28 28 2 9 11 11 15 14 18 2 Ballistic Cannon 6 | . . . 8 11 11 10 1 3 5 7 Naked Turns . | . . . . . . . . . . . Heaviest Build 62 | 12 20 20 38 33 34 34 35 45 61 62 Greatest Support 65 | 20 20 20 30 30 30 30 30 35 65 65 Greatest Overweight (x) 10 | 1 . . 1 2 1 1 3 1 1 10 Average Overweight (x) . | . . . . 1 1 . 1 . . . Largest Inventory Capacity 15 | 8 10 10 15 15 15 15 15 15 15 15 Average Capacity 14 | 7 9 10 14 15 15 15 15 15 15 15 Most Carried 15 | 3 10 10 13 13 13 14 15 15 15 12 Average Carried 11 | 2 8 9 12 12 13 13 13 13 13 10 Final Capacity 15 | 8 10 10 15 15 15 15 15 15 15 15 Final Carried 15 | 3 10 10 13 13 13 13 13 15 10 9 Class Distribution -------------------- 38% | Mutant 31% | Scavenger-Gunner 18% | Scavenger-Mutant 11% | Scavenger-Skirmisher Dominant Class ---------------- Mutant | -10/Materials Mutant | -10/Mines Scavenger-Mutant | -9/Materials Mutant | -9/Mines Mutant | -9/Exiles Mutant | -8/Mines Scavenger-Skirmisher | -8/Materials Scavenger-Gunner | -7/Factory Scavenger-Gunner | -6/Factory Mutant | -6/Extension Resources | -11 -10 -10 -9 -9 -9 -8 -8 -7 -6 -6 ----------- Run | Yrd Mat Min Mat Min Exi Min Mat Fac Fac Ext Matter Collected 2392 | 240 96 40 174 132 . 45 310 188 495 672 Remotely . | . . . . . . . . . . . Salvage Created 3030 | . 175 72 587 115 . 31 630 172 660 588 Parts 170 | . 9 7 40 7 . 8 26 13 42 18 Haulers Intercepted . | . . . . . . . . . . . Recyclers Shooed 6 | . . . . 1 . . 2 . . 3 Parts Field Recycled . | . . . . . . . . . . . Retrieved Matter . | . . . . . . . . . . . Parts Self-Destructed . | . . . . . . . . . . . Prevented . | . . . . . . . . . . . Kills | -11 -10 -10 -9 -9 -9 -8 -8 -7 -6 -6 ------- Run | Yrd Mat Min Mat Min Exi Min Mat Fac Fac Ext Combat Hostiles Destroyed 77 | . 4 2 12 5 . 4 14 6 16 14 Melee 3 | . . . . . . . . . 3 . Guns 40 | . 4 2 5 . . . 12 1 10 6 Cannons 14 | . . . 3 5 . 1 2 . . 3 AOE 18 | . . . 3 . . 3 . 4 3 5 Classes Destroyed 11 | . 1 . 4 1 . 3 . 1 1 . Worker 2 | . . . . . . . . . 2 . Tunneler 1 | . . . . . . 1 . . . . Operator 2 | . . . 1 . . . . 1 . . Watcher 4 | . . . 1 . . . . 1 1 1 Swarmer 14 | . . . . . . 3 . 4 7 . Grunt 45 | . 4 2 8 4 . . 12 . 7 8 Brawler 5 | . . . . 1 . . 1 1 . 2 Duelist 2 | . . . 2 . . . . . . . Sentry 7 | . . . 2 . . . 1 . . 4 Hunter 1 | . . . . . . 1 . . . . Programmer 3 | . . . . . . . . 1 2 . Best Kill Streak 6 | . 2 2 3 3 . 4 6 4 5 6 Combat Bots Only 6 | . 2 2 3 3 . 3 6 4 5 6 Max Kills in Single Turn 3 | . 1 1 2 1 . 2 1 3 2 3 Gunslinging 1 | . . . 1 . . . . . . . Exploded 3 | . . . 2 . . 2 . 3 2 2 Melee 1 | . . . . . . . . . 1 . Uniques/NPCs Destroyed . | . . . . . . . . . . . Combat | -11 -10 -10 -9 -9 -9 -8 -8 -7 -6 -6 -------- Run | Yrd Mat Min Mat Min Exi Min Mat Fac Fac Ext Hostile Shots Fired 629 | . 19 16 34 60 . 15 71 24 130 260 Missed 187 | . 3 2 14 12 . 9 18 8 35 86 Damage Taken 6868 | . 174 202 319 556 . 105 883 303 1925 2401 Core 1231 | . 21 36 43 64 . . 169 43 210 645 Absorbed by Shields . | . . . . . . . . . . . Regen/Repaired (Parts) 42 | . . . . . . . . 42 . . Core Remaining (%) 82 | 100 . 77 . . . 73 69 93 . . Volleys Fired 229 | 1 17 10 32 14 . 10 34 14 39 58 Largest 4 | 2 2 2 2 2 . 2 3 3 4 3 Hottest 156 | 40 40 40 80 78 . 62 156 136 143 126 Shots Fired 521 | 2 34 20 64 28 . 18 95 34 138 88 Gun 382 | 2 34 20 52 4 . 8 65 26 128 43 Cannon 126 | . . . 12 24 . 8 30 6 8 38 Launcher 13 | . . . . . . 2 . 2 2 7 Special . | . . . . . . . . . . . Kinetic 381 | 2 34 20 15 28 . 16 57 25 136 48 Thermal 78 | . . . . . . . 38 7 . 33 Explosive 13 | . . . . . . 2 . 2 2 7 Electromagnetic 49 | . . . 49 . . . . . . . Robot Hit Streak 36 | . 9 10 8 13 . 5 36 9 29 12 Robot Miss Streak 7 | . 2 1 3 2 . 2 3 2 5 7 Penetration Max 1 | . . . . . . . . . . 1 Secondary Targets 5 | . . 1 1 . . . 1 . 2 . Max Gunslinging Chain 1 | . . 1 1 . . . 1 . 1 . Shots Hit Robots 377 | . 27 16 48 21 . 15 79 26 81 64 Core Hits 201 | . 10 7 24 7 . 9 42 11 51 40 Critical Kills 7 | . 1 . . . . . 1 . 2 3 Critical Parts Destroyed 8 | . . . . . . . . . . 8 Critical Strikes 28 | . 1 . 2 . . 1 2 3 2 17 Burn 6 | . . . . . . . 1 3 . 2 Destroy 17 | . 1 . . . . . 1 . 2 13 Blast 3 | . . . . . . 1 . . . 2 Corrupt 2 | . . . 2 . . . . . . . Melee Attacks . | . . . . . . . . . . . Impact . | . . . . . . . . . . . Slashing . | . . . . . . . . . . . Piercing . | . . . . . . . . . . . Sneak Attacks . | . . . . . . . . . . . Combat Hostiles . | . . . . . . . . . . . Follow-up Attacks . | . . . . . . . . . . . Damage Inflicted 7873 | . 213 132 824 458 . 432 1334 736 1749 1995 Guns 3994 | . 213 130 485 41 . 80 790 318 1301 636 Cannons 2166 | . . . 227 417 . 107 541 110 34 730 Explosions 1494 | . . . 112 . . 245 . 308 245 584 Melee . | . . . . . . . . . . . Ramming 219 | . . 2 . . . . 3 . 169 45 Kinetic 4432 | . 213 130 252 458 . 187 684 333 1335 840 Thermal 1380 | . . . 112 . . . 647 95 . 526 Explosive 1382 | . . . . . . 245 . 308 245 584 Electromagnetic 460 | . . . 460 . . . . . . . Impact . | . . . . . . . . . . . Slashing . | . . . . . . . . . . . Piercing . | . . . . . . . . . . . Highest Corruption 6 | . . . . . . . . 5 . 6 Average Corruption 5 | . . . . . . . . 4 . 6 Corruption Purged . | . . . . . . . . . . . Corruption Blocked . | . . . . . . . . . . . Effects 33 | . . . . . . . . 23 . 10 Message Errors 10 | . . . . . . . . 7 . 3 Matter Fused 5 | . . . . . . . . 3 . 2 Heat Flow Errors 3 | . . . . . . . . 2 . 1 Energy Discharges 2 | . . . . . . . . 2 . . Data Loss (minor) 4 | . . . . . . . . 3 . 1 Data Loss (major) 2 | . . . . . . . . 1 . 1 Misfires 2 | . . . . . . . . 1 . 1 Alerts 2 | . . . . . . . . 1 . 1 Weapon Failures 3 | . . . . . . . . 3 . . Overload Shots . | . . . . . . . . . . . Overflow Damage 70 | . . . . . . . . 32 36 2 Projectiles 4 | . . . . . . . . . 4 . Explosions 62 | . . . . . . . . 32 30 . Melee 4 | . . . . . . . . . 2 2 Knockbacks 14 | . . . . 1 . 3 1 . 1 8 Impact 1 | . . . . . . . . . . 1 Kinetic 11 | . . . . 1 . 3 1 . 1 5 Secondary 2 | . . . . . . . . . . 2 Self-Inflicted Damage 52 | . . . . . . . . 20 32 . Shots 2 | . . . . . . . . 1 1 . Rammed . | . . . . . . . . . . . Targets Rammed 39 | . . 1 . . . . 3 . 32 3 Kicked 39 | . . 1 . . . . 3 . 32 3 Crushed . | . . . . . . . . . . . Highest Temperature 424 | . 27 48 123 384 . . 424 135 290 319 Average Temperature 97 | . 12 30 44 193 . . 116 44 108 118 Received Heat Transfer 2454 | . 96 174 180 306 . . 540 . 270 888 Effects 4 | . . . . 2 . . 1 . 1 . Shutdowns 1 | . . . . . . . 1 . . . Energy Bleed 2 | . . . . 1 . . . . 1 . Short Circuit 1 | . . . . 1 . . . . . . Siege Activations . | . . . . . . . . . . . Robots Corrupted 1 | . . . 1 . . . . . . . Combat Hostiles 1 | . . . 1 . . . . . . . Parts Fried 1 | . . . 1 . . . . . . . Impact Corruptions 2 | . . . . . . . . . 1 1 Robots Melted 1 | . . . . . . . . 1 . . Combat Hostiles 1 | . . . . . . . . 1 . . Parts Melted 2 | . . . . . . . 1 . . 1 Heat Transferred 3147 | . . . 150 . . . 1332 444 . 1221 Parts Sabotaged . | . . . . . . . . . . . Parts Stolen . | . . . . . . . . . . . Parts Stripped . | . . . . . . . . . . . Power Chain Reactions 2 | . . . 2 . . . . . . . Alert | -11 -10 -10 -9 -9 -9 -8 -8 -7 -6 -6 ------- Run | Yrd Mat Min Mat Min Exi Min Mat Fac Fac Ext Peak Influence 390 | . 116 75 390 163 . 133 196 166 204 242 Initial 98 | . . 45 29 98 . . 51 84 7 46 Average 94 | . 68 61 250 122 . 56 95 93 74 63 Maximum Alert Level 1 | . . . 1 . . . . . 1 1 Low Security (%) 91 | 100 100 100 25 100 . 100 100 100 95 95 Level 1 8 | . . . 74 . . . . . 4 4 Level 2 . | . . . . . . . . . . . Level 3 . | . . . . . . . . . . . Level 4 . | . . . . . . . . . . . Level 5 . | . . . . . . . . . . . High Security . | . . . . . . . . . . . Max Security . | . . . . . . . . . . . Squads Dispatched 9 | . 1 . 2 . . . 2 2 2 . Investigation . | . . . . . . . . . . . Extermination 4 | . . . . . . . . 2 2 . Reinforcement 5 | . 1 . 2 . . . 2 . . . Assault . | . . . . . . . . . . . Garrison . | . . . . . . . . . . . Intercept . | . . . . . . . . . . . Searches Triggered . | . . . . . . . . . . . Construction Impeded . | . . . . . . . . . . . Haulers Reinforced . | . . . . . . . . . . . Active Scanning Responses . | . . . . . . . . . . . Cargo Convoy Interrupts . | . . . . . . . . . . . Stealth | -11 -10 -10 -9 -9 -9 -8 -8 -7 -6 -6 --------- Run | Yrd Mat Min Mat Min Exi Min Mat Fac Fac Ext Distress Signals 7 | . . . 2 . . . 2 . . 3 Communications Jammed . | . . . . . . . . . . . Distress Signals . | . . . . . . . . . . . Times Spotted 108 | . 6 2 18 5 . 2 22 11 21 21 Peak Tracking Total 6 | . 2 2 3 4 . 1 6 5 6 6 Tactical Retreats 12 | . . . 1 . . . 1 2 3 5 Traps | -11 -10 -10 -9 -9 -9 -8 -8 -7 -6 -6 ------- Run | Yrd Mat Min Mat Min Exi Min Mat Fac Fac Ext Traps Triggered 2 | . . . 1 . . . . 1 . . Indirectly . | . . . . . . . . . . . Trap Hack Attempts . | . . . . . . . . . . . Triggered . | . . . . . . . . . . . Disarmed . | . . . . . . . . . . . Reprogrammed . | . . . . . . . . . . . Reused . | . . . . . . . . . . . Traps Extracted . | . . . . . . . . . . . Installed . | . . . . . . . . . . . Triggered . | . . . . . . . . . . . Most Traps Carried 3 | . . 3 3 3 3 3 3 3 3 3 Machines | -11 -10 -10 -9 -9 -9 -8 -8 -7 -6 -6 ---------- Run | Yrd Mat Min Mat Min Exi Min Mat Fac Fac Ext Machines Disabled 4 | . . . 2 . . . . . 2 . Max in Single Turn 2 | . . . 1 . . . . . 2 . Machines Repaired . | . . . . . . . . . . . Machines Dismantled . | . . . . . . . . . . . Machines Sabotaged . | . . . . . . . . . . . Overloaded Fab Kills . | . . . . . . . . . . . Hacking | -11 -10 -10 -9 -9 -9 -8 -8 -7 -6 -6 --------- Run | Yrd Mat Min Mat Min Exi Min Mat Fac Fac Ext Machines Accessed 20 | . 1 1 3 1 1 . 4 3 5 1 Terminals 13 | . 1 . 3 1 . . 4 1 2 1 Fabricators 3 | . . . . . . . . 1 2 . Repair Stations 1 | . . . . . . . . 1 . . Recycling Units 1 | . . . . . . . . . 1 . Scanalyzers . | . . . . . . . . . . . Garrison Access . | . . . . . . . . . . . Total Hacks 42 | . 4 1 11 3 1 . 10 4 6 2 Successful 23 | . 2 1 4 1 1 . 6 2 5 1 Failed 19 | . 2 . 7 2 . . 4 2 1 1 Catastrophic 5 | . . . 1 . . . 1 2 1 . Database Lockouts . | . . . . . . . . . . . Manual 8 | . . . 5 . 1 . 2 . . . Terminals 33 | . 4 . 11 3 . . 10 1 2 2 Fabricators 4 | . . . . . . . . 1 3 . Repair Stations 2 | . . . . . . . . 2 . . Recycling Units 1 | . . . . . . . . . 1 . Scanalyzers . | . . . . . . . . . . . Garrison Access . | . . . . . . . . . . . Terminal Hacks 17 | . 2 1 4 1 1 . 6 . 1 1 Open Door 3 | . . 1 . . . . . . 1 1 Branch Access Points 1 | . 1 . . . . . . . . . Emergency Access Points 1 | . . . . . . . 1 . . . Terminal Index 1 | . . . 1 . . . . . . . Alert Level 3 | . . . 1 . . . 2 . . . Locate Traps 2 | . 1 . . . . . 1 . . . Dispatch Records 1 | . . . . . . . 1 . . . Recall Reinforcements 1 | . . . 1 . . . . . . . Zone Layout 3 | . . . 1 1 . . 1 . . . Derelict Proto ID Bank 1 | . . . . . 1 . . . . . Fabricator Hacks 3 | . . . . . . . . . 3 . Network Status 3 | . . . . . . . . . 3 . Repair Station Hacks 2 | . . . . . . . . 2 . . Scan Component 1 | . . . . . . . . 1 . . Repair 1 | . . . . . . . . 1 . . Recycling Unit Hacks 1 | . . . . . . . . . 1 . Report Inventory 1 | . . . . . . . . . 1 . Scanalyzer . | . . . . . . . . . . . Garrison Access Hacks . | . . . . . . . . . . . Unauthorized Hacks . | . . . . . . . . . . . Terminals . | . . . . . . . . . . . Fabricators . | . . . . . . . . . . . Repair Stations . | . . . . . . . . . . . Recycling Units . | . . . . . . . . . . . Scanalyzers . | . . . . . . . . . . . Garrison Access . | . . . . . . . . . . . Data Cores Recovered 2 | . . . 1 . . . . 1 . . Used . | . . . . . . . . . . . Hacking Detections 13 | . 1 . 3 1 . . 4 2 2 . Full Trace Events . | . . . . . . . . . . . Feedback Events . | . . . . . . . . . . . Feedback Blocked . | . . . . . . . . . . . Robot Schematics Acquired . | . . . . . . . . . . . Robots Built . | . . . . . . . . . . . Authchips . | . . . . . . . . . . . Time . | . . . . . . . . . . . Total Robot Build Rating . | . . . . . . . . . . . Part Schematics Acquired . | . . . . . . . . . . . Parts Built . | . . . . . . . . . . . Authchips . | . . . . . . . . . . . Time . | . . . . . . . . . . . Total Part Build Rating . | . . . . . . . . . . . Parts Repaired 1 | . . . . . . . . 1 . . Time 26 | . . . . . . . . 26 . . Parts Recycled . | . . . . . . . . . . . Recycled Matter . | . . . . . . . . . . . Retrieved Matter . | . . . . . . . . . . . Retrieved Components . | . . . . . . . . . . . Parts Scanalyzed . | . . . . . . . . . . . Part Schematics Acquired . | . . . . . . . . . . . Parts Damaged . | . . . . . . . . . . . Bothacking | -11 -10 -10 -9 -9 -9 -8 -8 -7 -6 -6 ------------ Run | Yrd Mat Min Mat Min Exi Min Mat Fac Fac Ext Used RIF Installer . | . . . . . . . . . . . Robots Hacked . | . . . . . . . . . . . Non-combat . | . . . . . . . . . . . Combat . | . . . . . . . . . . . Robot Hacks Applied . | . . . . . . . . . . . Relay Couplers Released . | . . . . . . . . . . . Fabnet Peak Effective % . | . . . . . . . . . . . Robots Rewired . | . . . . . . . . . . . Allies Hacked . | . . . . . . . . . . . Hacks Repelled . | . . . . . . . . . . . Allies | -11 -10 -10 -9 -9 -9 -8 -8 -7 -6 -6 -------- Run | Yrd Mat Min Mat Min Exi Min Mat Fac Fac Ext Total Allies 5 | . . . . . . . . . . 5 Largest Group 2 | . . . . . . . . . . 2 Highest-Rated Group 59 | . . . . . . . . . . 59 Highest-Rated Ally 39 | . . . . . . . . . . 39 Total Orders . | . . . . . . . . . . . Ally Attacks 19 | . . . . . . . . . . 19 Total Damage 359 | . . . . . . . . . . 359 Kills 2 | . . . . . . . . . . 2 Allies Corrupted . | . . . . . . . . . . . Allies Melted 1 | . . . . . . . . . . 1 Intel | -11 -10 -10 -9 -9 -9 -8 -8 -7 -6 -6 ------- Run | Yrd Mat Min Mat Min Exi Min Mat Fac Fac Ext Robot Analysis Total . | . . . . . . . . . . . Derelict Logs Recovered 1 | . . . . 1 . . . . . . Drone Launches . | . . . . . . . . . . . Drone Recoveries . | . . . . . . . . . . . Exploration | -11 -10 -10 -9 -9 -9 -8 -8 -7 -6 -6 ------------- Run | Yrd Mat Min Mat Min Exi Min Mat Fac Fac Ext Turns Passed 7033 | 65 219 357 575 504 603 224 699 1018 1144 1625 Spaces Moved 3555 | 43 131 254 264 238 317 104 236 501 664 803 Core 11 | 7 . . . . . . . . . 4 Treads . | . . . . . . . . . . . Legs 3544 | 36 131 254 264 238 317 104 236 501 664 799 Wheels . | . . . . . . . . . . . Hover . | . . . . . . . . . . . Flight . | . . . . . . . . . . . Fastest Speed 50 | 50 120 120 120 190 190 120 190 120 120 120 Average Speed 156 | 118 120 120 170 190 190 182 190 184 134 134 Slowest Speed 550 | 190 120 120 190 260 190 190 330 190 190 550 Overloaded Moves . | . . . . . . . . . . . Propulsion Burnouts . | . . . . . . . . . . . Robots Hopped . | . . . . . . . . . . . Cave-ins Triggered . | . . . . . . . . . . . Exploration Rate (%) 33 | 3 16 45 32 54 66 39 29 20 16 49 Regions Visited 10 Branch Regions 5 Pre-discovered Areas . | . . . . . . . . . . . Known Exits Taken 2 | . 1 . . . . . . . 1 . Unknown Exits Taken 8 | 1 . 1 1 1 1 1 1 1 . . Scrap Searched 4 | . . 1 . 2 . 1 . . . . Spaces Dug . | . . . . . . . . . . . Terrain Destroyed 116 | . . . 6 . . 16 1 11 24 58 Melee . | . . . . . . . . . . . Projectile 15 | . . . . . . . 1 2 . 12 AOE 101 | . . . 6 . . 16 . 9 24 46 Terrain Rammed . | . . . . . . . . . . . Walls Destroyed . | . . . . . . . . . . . Machines Disabled . | . . . . . . . . . . . Actions | -11 -10 -10 -9 -9 -9 -8 -8 -7 -6 -6 --------- Run | Yrd Mat Min Mat Min Exi Min Mat Fac Fac Ext Total 4610 | 52 166 292 324 261 318 121 412 571 832 1261 Wait 603 | . 2 14 2 . . 2 116 26 70 371 Move 3545 | 42 130 253 263 237 316 103 235 500 663 803 Hop . | . . . . . . . . . . . Pick Up 51 | 3 9 4 8 4 . 1 9 10 3 . Fast Attach 48 | 6 1 1 6 2 1 . 3 5 9 14 Attach 31 | . . 1 2 4 . . 8 4 8 4 Detach 5 | . . . . . . 1 1 1 . 2 Swap 19 | . 3 2 3 . . 2 . 3 4 2 Drop 38 | . 4 6 8 . 1 2 3 8 4 2 Fire 229 | 1 17 10 32 14 . 10 34 14 39 58 Melee . | . . . . . . . . . . . Ram . | . . . . . . . . . . . Kick 39 | . . 1 . . . . 3 . 32 3 Crush . | . . . . . . . . . . . Escape Stasis . | . . . . . . . . . . . Rewire 2 | . . . . . . . . . . 2 Trap . | . . . . . . . . . . . Miscellaneous . | . . . . . . . . . . . Route ------- -11/Scrapyard -10/Materials (discovered 2 exits: *Min x2) -10/Mines -9/Materials (discovered 2 exits: *Mat / *Min) -9/Mines (discovered 2 exits: Mat / *Exi) -9/Exiles -8/Mines -8/Materials -7/Factory (discovered 2 exits: *Fac / [*Low]) -6/Factory -6/Extension History --------- Turn | Location | Event 17 | -11/Scrapyard | Discovered new exit (range 15) 66 | -11/Scrapyard | Entered Materials 76 | -10/Materials | Identified exit to Mines 285 | -10/Materials | Entered Mines 314 | -10/Mines | Build established: Mutant 504 | -10/Mines | Found a hidden stash of uninstalled traps 611 | -10/Mines | Discovered new exit (range 9) 627 | -10/Mines | Found the Drone Emporium 633 | -10/Mines | Found Prototype Device 633 | -10/Mines | Identified Thief Drone Bay 642 | -10/Mines | Entered Materials 642 | -9/Materials | Evolved 2 slots: Propulsion x1, Utility x1 929 | -9/Materials | Build established: Scavenger-Mutant 1039 | -9/Materials | Discovered new exit (range 7) 1202 | -9/Materials | Discovered new exit (range 5) 1217 | -9/Materials | Entered Mines 1291 | -9/Mines | Lost 6 parts (1p3n1u1w) 1399 | -9/Mines | Assembled infested the area 1436 | -9/Mines | Learned Materials terminal intel 1481 | -9/Mines | Discovered new exit (range 16) 1519 | -9/Mines | Build established: Mutant 1714 | -9/Mines | Deemed a non-threat by the Exiles lab entrance 1714 | -9/Mines | Discovered new exit (range 5) 1721 | -9/Mines | Entered Exiles 1765 | -9/Exiles | Met 8R-AWN 1799 | -9/Exiles | Met EX-HEX 1873 | -9/Exiles | Met EX-BIN 1898 | -9/Exiles | Aligned with FarCom system 1900 | -9/Exiles | Given EX-Vault access code 2073 | -9/Exiles | Opened EX-Vault 2100 | -9/Exiles | Found Skeleton Box 2145 | -9/Exiles | Warned to stay clear of 0b10 Research branches 2198 | -9/Exiles | Met EX-DEC 2305 | -9/Exiles | Discovered new exit (range 10) 2324 | -9/Exiles | Left Exiles lab with Skeleton Box 2324 | -9/Exiles | Entered Mines 2535 | -8/Mines | Discovered new exit (range 7) 2548 | -8/Mines | Entered Materials 2548 | -8/Materials | Evolved 2 slots: Utility x1, Weapon x1 2549 | -8/Materials | Loaded intel: 12 terminal locations 3176 | -8/Materials | Lost 4 parts (3n1w) 3239 | -8/Materials | Discovered new exit (range 5) 3247 | -8/Materials | Entered Factory 3247 | -7/Factory | Evolved 2 slots: Power x1, Propulsion x1 3571 | -7/Factory | Build established: Scavenger-Gunner 3886 | -7/Factory | Discovered new exit (range 10) 4163 | -7/Factory | Discovered new exit (range 15) 4239 | -7/Factory | Repaired Ion Engine 4265 | -7/Factory | Entered another Factory area 4265 | -6/Factory | Evolved 2 slots: Utility x1, Weapon x1 4879 | -6/Factory | Lost 6 parts (1p2n1u2w) 5262 | -6/Factory | Build established: Scavenger-Skirmisher 5404 | -6/Factory | Discovered new exit (range 6) 5408 | -6/Factory | Identified exit to Extension 5409 | -6/Factory | Entered Extension 5657 | -6/Extension | Build established: Scavenger-Gunner 5808 | -6/Extension | Rescued a captive Derelict 5809 | -6/Extension | Rescued a captive Derelict 5932 | -6/Extension | Remotely autohacked Sealed Heavy Doors 5932 | -6/Extension | Rescued a captive Derelict 5943 | -6/Extension | Spotted B-75 Beast 6065 | -6/Extension | Lost 7 parts (1p4n2w) 6210 | -6/Extension | Core integrity fell below 50% 6332 | -6/Extension | Build established: Mutant 6571 | -6/Extension | Remotely autohacked Sealed Heavy Doors 6571 | -6/Extension | Rescued a captive Derelict 6571 | -6/Extension | Rescued a captive Derelict 6672 | -6/Extension | Lost 5 parts (2p1n2w) 6962 | -6/Extension | Build established: Scavenger-Mutant 7019 | -6/Extension | Spotted B-75 Beast 7020 | -6/Extension | Core integrity fell below 20% 7034 | -6/Extension | Destroyed by B-75 Beast with Heavy Plasma Cannon Last Messages --------------- 06950_ The unstable cave ceiling collapses. 06965_ Acquired 20 matter. 06966_ The unstable cave ceiling collapses. 06972_ Acquired Gatling Laser. 06974_ The unstable cave ceiling collapses. 06987_ System corrupted: Matter fused (-9). 06997_ Kicked R-10 Processor out of the way. 06997_ R-10 Processor knocked back. 07010_ System corrupted: Matter fused (-6). 07014_ Acquired 6 matter. 07017_ Acquired 67 matter. 07018_ Acquired 1 matter. 07018_ Machine disabled. 07022_ Gatling Laser destroyed. 07022_ Carbon-fiber Leg destroyed. 07025_ Neutrino Core destroyed. 07028_ Missile Launcher destroyed. 07029_ Machine disabled. 07029_ Carbon-fiber Leg destroyed. 07031_ Neutrino Core destroyed. Map ----- +----------------------------------------------------+ | #???????????????????????????????????????? | | ###+###???????????????????????????????????????? | | ## ###########??????????????????????????????? | | #??????????????????????????????? | | ## ######### #??????????????????????????????? | | #######???????# #??????????????????????????????? | | ###?????????????# #??????????????????????????????? | | ????????????????# #??????????????????????????????? | | ????????????????# #??????????????????????????????? | | ????????????????# #??????????????????????????????? | | ????????????????# #??????????????????????????????? | | ????????????##### #??????????????????????????????? | | ????????????# #??????????????????????????????? | | ????????????###T# #??????????????????????????????? | | ??????????????### #?????????w????????????????????? | | ????????????????# #?????????w????????????????????? | | ????????????????# #??????????????????????????????? | | ????????????????# #??????????????????????????????? | | ????????????????# #??????????????????????????????? | | ????????????????# #??????????????????????????????? | | ????????????????# #??????????????????????????????? | | ????????????????# #??????????????????????????????? | | ????????????????# #?#######??#???????????????????? | | ??????????????### ### ##%;## ###?????????????????? | | ?????????????## " " % " ""#?????????????????? | | ?????????????#; % @%" " #?????????????????? | | ?????????????## % #?????????????????? | | ??????????????# #?????????????????? | | ############### #?????????????????? | | ???????????????? | | ?????????????? | | ????????????? | | u ???????????? | | uu R k ???????????? | | ############### BB BB #######???????????? | | ??????????????# BB BB #?????????????????? | | ??????????????# #?????????????????? | | ??????????????# #?????????????????? | | ??????????????# #?????????????????? | | ??????????????######T#"""#####???????????????????? | | ?????????????????????????????????????????????????? | | ?????????????????????????????????????????????????? | | | | | | | | | | | | | | | | | +----------------------------------------------------+ Best States ------------- Heat Dissipation 37 Energy Generation 34 Energy Capacity 530 Matter Stores 300 Matter Capacity 300 Sight Range 16 Terrain Scan Density 10 Armor Coverage 150 Evasion (%) 55 Targeting Accuracy 24 Recoil Reduction 4 Kinecelleration 30 Item Schematics ----------------- None Robot Schematics ------------------ None Fabricated ------------ Nothing Alien Tech Used ----------------- None Achievements -------------- None Challenges ------------ None Game ------ Seed NeutrinoRefineryWings Manual? 0 Play Time 01:06:10 Cumulative 12.4 hours Start 2024.04.18 @ 18:13:21 End 2024.04.22 @ 20:11:43 Sessions 7 Manual Loads 0 Difficulty Rogue Special Mode None Game No. 18 Rogue 18 Adventurer 0 Explorer 0 Win Type - Total 0 Types 0/0/0/0/0/0/0/0/0 Lore% 18 Gallery% 19 Achievement% 21 Wizard Run 0 Options --------- Layout 0 ASCII 0 Keyboard 0 Movement Mouse Keybinds 0 Fullscreen 1 Font 18/SmallcapsGlow Map View 76x50 Zoom Use 0% Tactical HUD 1 Map Filters NONE Filters NONE Steam 1 RUN: 267e6ad4-c635-40a5-9f76-7f438f53e302